bitfinex-derivatives/quotes_SOLF0:USTF0_20250124
["timestamp","ask_amount","ask_price","bid_price","bid_amount"]
[1737750256485,0.02496109,259.54,259.38,13.6846723]
[1737750256687,3.8516,259.55,259.38,13.6846723]
[1737750256877,0.9067,259.6,259.47,3.8526]
[1737750257077,0.96331941,259.59,259.47,3.8526]
[1737750257285,0.96331941,259.58,259.43,24.08110047]
[1737750257484,1.2273,259.61,259.52,3.8518]
[1737750257685,0.02429986,259.53,259.52,3.8518]
[1737750257876,1.2273,259.61,259.52,3.8518]
[1737750258080,0.02956389,259.55,259.52,3.8518]
[1737750258277,0.02956389,259.55,259.53,3.8516]
[1737750258677,2.5272,259.73,259.5,0.02931754]
[1737750258881,0.96295904,259.72,259.48,24.08110047]
[1737750259086,0.96295904,259.71,259.49,1.2499]
[1737750259284,3.8495,259.68,259.55,3.8514]
[1737750259490,0.96295904,259.67,259.49,1.2499]
[1737750259792,0.02755054,259.61,259.55,0.02846051]
[1737750259989,0.02755054,259.61,259.59,3.8508]
[1737750261085,3.8486,259.75,259.55,0.02542358]
[1737750261291,0.96269936,259.74,259.54,24.08110047]
[1737750261589,0.96269936,259.73,259.54,24.08110047]
[1737750261790,3.8494,259.69,259.55,1.2545]
[1737750261991,24.08110047,259.74,259.55,1.2545]
[1737750262188,1.2339,259.71,259.55,1.2545]
[1737750262392,1.2339,259.71,259.62,0.02650893]
[1737750262393,0.02959487,259.67,259.62,0.02650893]
[1737750262789,3.8499,259.66,259.62,0.02650893]
[1737750263293,0.02959487,259.67,259.62,0.02650893]
[1737750264487,0.02959487,259.67,259.62,3.87680893]
[1737750265291,0.02959487,259.67,259.62,0.02650893]
[1737750265693,0.9629716,259.66,259.62,0.02650893]
[1737750265897,0.9629716,259.65,259.49,25.33100047]
[1737750266190,0.9629716,259.64,259.44,25.32550047]
[1737750266395,0.9629716,259.63,259.44,25.32550047]
[1737750266592,0.9629716,259.62,259.54,3.8516]
[1737750266789,2.6069,259.7,259.54,3.8516]
[1737750266992,0.02558716,259.61,259.55,0.02654431]
[1737750267888,0.96314262,259.6,259.55,0.02654431]
[1737750268091,0.02558716,259.61,259.55,0.02654431]
[1737750268294,0.96314262,259.6,259.55,0.02654431]
[1737750268493,0.02558716,259.61,259.55,0.02654431]
[1737750268692,0.96314289,259.6,259.55,0.02654431]
[1737750268892,0.02558716,259.61,259.55,0.02654431]
[1737750269493,3.8513,259.56,259.55,0.02654431]
[1737750269991,0.02558716,259.61,259.55,0.02654431]
[1737750271797,0.02558716,259.61,259.6,3.8507]
[1737750273594,2.6538,259.77,259.58,14.80953433]
[1737750273896,3.849,259.72,259.58,14.80953433]
[1737750274095,2.6538,259.77,259.62,3.8504]
[1737750274295,3.8491,259.71,259.58,14.80953433]
[1737750274497,2.6538,259.77,259.58,14.80953433]
[1737750274696,0.02931652,259.67,259.62,0.02628969]
[1737750275597,0.02931652,259.67,259.66,3.8498]
[1737750276299,18.15885085,259.67,259.39,14.80953433]
[1737750276496,14.80953433,259.6,259.39,14.80953433]
[1737750276695,0.96321956,259.59,259.39,14.80953433]
[1737750276901,0.96321956,259.58,259.39,14.80953433]
[1737750277200,0.9632344,259.57,259.37,2.5732]
[1737750277498,0.02595948,259.51,259.34,14.80953433]
[1737750277699,0.9632344,259.5,259.34,14.80953433]
[1737750277896,14.80953433,259.61,259.34,14.80953433]
[1737750278198,1.65501248,259.6,259.34,14.80953433]
[1737750278399,0.963586,259.59,259.34,14.80953433]
[1737750278599,0.02841543,259.5,259.44,0.02469644]
[1737750278895,0.02841543,259.5,259.44,0.02651392]
[1737750281396,3.8525,259.48,259.44,0.02651392]
[1737750282002,3.8527,259.47,259.44,0.02651392]
[1737750282307,0.02841543,259.5,259.44,0.02651392]
[1737750282604,3.88061543,259.5,259.44,0.02651392]
[1737750283003,3.8524,259.49,259.44,0.02651392]
[1737750283296,0.96357211,259.48,259.44,0.02651392]
[1737750283494,0.02841543,259.5,259.44,0.02651392]
[1737750283700,0.96356016,259.49,259.44,0.02651392]
[1737750283900,0.02841543,259.5,259.44,0.02651392]
[1737750284101,3.88061543,259.5,259.44,0.02651392]
[1737750284300,0.9635354,259.49,259.44,0.02651392]
[1737750284602,0.02841543,259.5,259.44,0.02651392]
[1737750284801,0.96356676,259.49,259.44,0.02651392]
[1737750284999,0.96359077,259.48,259.44,0.02651392]
[1737750285207,0.02841543,259.5,259.44,0.02651392]
[1737750285496,0.96358017,259.49,259.44,0.02651392]
[1737750285701,3.8527,259.47,259.44,0.02651392]
[1737750286602,0.02841543,259.5,259.44,0.02651392]
[1737750286807,0.96355618,259.49,259.44,0.02651392]
[1737750286999,0.02841543,259.5,259.44,0.02651392]
[1737750287195,3.8523,259.49,259.44,0.02651392]
[1737750287699,0.02841543,259.5,259.44,0.02651392]
[1737750287902,0.02841543,259.5,259.45,3.8529]
[1737750288102,0.02841543,259.5,259.44,0.02651392]
[1737750288306,0.02841543,259.5,259.47,3.8526]
[1737750290608,0.02841543,259.5,259.48,3.8525]
[1737750291211,2.4553,259.66,259.45,2.6005]
[1737750291610,3.8508,259.6,259.45,2.6005]
[1737750291907,0.96322414,259.59,259.45,2.6005]
[1737750292103,0.96322414,259.58,259.45,2.6005]
[1737750292310,0.96322414,259.57,259.45,2.6005]
[1737750292509,0.02745914,259.54,259.49,0.02460531]
[1737750292712,3.8505,259.62,259.45,2.6005]
[1737750293017,0.02646221,259.54,259.49,0.02558776]
[1737750293612,3.8502,259.63,259.49,14.83512209]
[1737750293814,0.96305839,259.62,259.49,14.80953433]
[1737750294015,0.96305839,259.61,259.49,14.80953433]
[1737750294210,0.96305839,259.6,259.58,3.8509]
[1737750294416,0.96305839,259.59,259.58,3.8509]
[1737750294716,0.96305839,259.59,259.56,0.02519655]
[1737750295018,0.96305839,259.58,259.56,3.87629655]
[1737750295215,0.96305839,259.57,259.56,3.87629655]
[1737750295615,0.96306394,259.6,259.56,3.87629655]
[1737750295819,0.96306394,259.59,259.56,3.87629655]
[1737750296015,0.96306394,259.58,259.56,3.87629655]
[1737750296317,0.96306394,259.57,259.56,3.87629655]
[1737750296513,0.96306394,259.57,259.56,0.02519655]
[1737750296820,19.17259827,259.57,259.28,14.80953433]
[1737750297016,4.22093641,259.56,259.28,14.80953433]
[1737750297216,14.80953433,259.52,259.28,14.80953433]
[1737750297518,14.80953433,259.47,259.22,14.80953433]
[1737750297711,14.80953433,259.47,259.23,3.8561]
[1737750297712,3.8547,259.33,259.23,3.8561]
[1737750297916,0.96369664,259.32,259.22,14.80953433]
[1737750298114,0.96369664,259.32,259.25,0.02435306]
[1737750298315,0.02519415,259.3,259.25,0.02435306]
[1737750298510,0.96369664,259.29,259.25,0.02435306]
[1737750298713,0.96369664,259.29,259.22,14.80953433]
[1737750298714,3.8537,259.4,259.27,3.8555]
[1737750298914,0.0279202,259.3,259.24,0.02821928]
[1737750299112,14.80953433,259.47,259.22,14.80953433]
[1737750299416,0.02842953,259.3,259.25,3.8558]
[1737750299615,14.80953433,259.47,259.22,14.80953433]
[1737750299811,0.00643224,259.3,259.27,14.80953433]
[1737750300117,3.8539,259.39,259.28,3.8553]
[1737750300318,0.96388922,259.38,259.27,14.80953433]
[1737750300620,14.80953433,259.52,259.27,14.80953433]
[1737750300823,0.96381106,259.51,259.27,14.80953433]
[1737750301023,0.02889344,259.42,259.37,0.02867713]
[1737750301218,0.96381106,259.41,259.37,0.02867713]
[1737750301418,3.88229344,259.42,259.37,0.02867713]
[1737750301615,0.96373851,259.41,259.37,0.02867713]
[1737750301817,3.88229344,259.42,259.37,0.02867713]
[1737750302019,0.96376218,259.41,259.37,0.02867713]
[1737750302215,0.02889344,259.42,259.37,0.02867713]
[1737750302413,0.96378905,259.41,259.37,0.02867713]
[1737750302613,0.96378905,259.4,259.37,0.02867713]
[1737750302816,3.8536,259.41,259.37,0.02867713]
[1737750303123,0.96380531,259.4,259.37,0.02867713]
[1737750303323,0.02889344,259.42,259.37,0.02867713]
[1737750303523,0.96380166,259.41,259.37,0.02867713]
[1737750303720,0.02889344,259.42,259.37,0.02867713]
[1737750304121,0.96375544,259.41,259.37,0.02867713]
[1737750304418,0.02889344,259.42,259.37,0.02867713]
[1737750304717,3.8512,259.57,259.48,3.8524]
[1737750304916,12.97517311,259.61,259.42,14.80953433]
[1737750305114,5.23513682,259.61,259.42,14.80953433]
[1737750305315,5.23513682,259.61,259.38,1.3512]
[1737750305517,14.80953433,259.56,259.38,1.3512]
[1737750305723,0.02562942,259.52,259.47,0.02661021]
[1737750305917,3.8524,259.49,259.47,0.02661021]
[1737750306721,3.8524,259.49,259.47,1.021e-05]
[1737750310927,1.3331,259.51,259.47,1.021e-05]
[1737750311627,0.02562942,259.52,259.47,1.021e-05]
[1737750312027,3.87752942,259.52,259.47,1.021e-05]
[1737750312229,0.02562942,259.52,259.47,1.021e-05]
[1737750312631,3.8524,259.49,259.47,1.021e-05]
[1737750316334,3.8525,259.48,259.47,1.021e-05]
[1737750316935,7.2325,259.48,259.47,1.021e-05]
[1737750317235,7.92348608,259.48,259.47,1.021e-05]
[1737750317434,7.2325,259.48,259.47,1.021e-05]
[1737750318835,7.92345182,259.48,259.47,1.021e-05]
[1737750319032,4.07095182,259.48,259.22,14.80953433]
[1737750319234,3.855,259.31,259.22,14.80953433]
[1737750319435,14.80953433,259.46,259.22,14.80953433]
[1737750319738,14.80953433,259.38,259.12,14.80953433]
[1737750319934,1.2386,259.37,259.13,1.227]
[1737750320242,3.8557,259.27,259.22,0.02490529]
[1737750320636,0.02807165,259.28,259.22,0.02490529]
[1737750320939,3.856,259.24,259.22,0.02490529]
[1737750322336,0.02807165,259.28,258.94,3.38]
[1737750322539,1.2349,259.27,258.96,14.80953433]
[1737750322740,1.2349,259.27,259.08,14.80953433]
[1737750323035,3.8565,259.21,259.12,3.8578]
[1737750323435,3.8569,259.19,259.1,3.8581]
[1737750323640,3.88316544,259.19,259.14,0.02884342]
[1737750323942,0.02626544,259.19,259.14,0.02884342]
[1737750324137,0.02626544,259.19,259.08,14.80953433]
[1737750324438,0.02626544,259.19,259.02,14.80953433]
[1737750324739,1.2349,259.27,259.02,14.80953433]
[1737750324941,77.80054212,259.18,259.07,14.80953433]
[1737750325343,0.02452282,259.15,259.1,0.02447264]
[1737750325544,0.02452282,259.15,259.07,1.91186778]
[1737750325843,0.02452282,259.15,259.13,3.8576]
[1737750326143,0.02452282,259.15,259.12,14.80953433]
[1737750326436,0.02452282,259.15,259.11,3.8579]
[1737750326637,129.92915336,259.13,259.11,3.88707758]
[1737750327038,129.92915336,259.13,259.1,3.858]
[1737750327245,129.92915336,259.13,259.06,14.80953433]
[1737750327642,129.92915336,259.13,259.07,2.491]
[1737750327844,0.02452282,259.15,259.11,3.8578]
[1737750328242,0.02452282,259.15,259.1,0.02664025]
[1737750331447,0.02452282,259.15,259.1,4.025e-05]
[1737750331641,0.02452282,259.15,258.97,2.4967]
[1737750331842,0.02452282,259.15,259.0,14.80953433]
[1737750332043,3.8581,259.1,259.04,3.8589]
[1737750332749,3.88277528,259.1,259.04,3.88432785]
[1737750333846,0.02467528,259.1,259.04,0.02542785]
[1737750334150,3.8586,259.07,259.04,0.02542785]
[1737750334850,3.8586,259.07,258.97,2.02922785]
[1737750335047,14.80953433,259.05,258.83,14.80953433]
[1737750335249,14.80953433,259.05,258.84,1.3158]
[1737750335450,14.80953433,259.1,258.88,14.80953433]
[1737750335652,1.2467,259.14,258.93,14.80953433]
[1737750335848,77.1592042,259.21,258.99,14.80953433]
[1737750336149,1.3102,259.2,259.0,1.2828]
[1737750336344,0.02922605,259.12,259.0,1.2828]
[1737750336751,0.02922605,259.12,259.01,3.8593]
[1737750336948,0.02922605,259.12,259.0,1.2828]
[1737750337549,5.18196959,259.1,259.0,1.2828]
[1737750337853,3.8591,259.04,258.93,3.8606]
[1737750338046,19.99150392,259.1,258.89,14.80953433]
[1737750338348,0.02726828,258.97,258.93,3.8606]
[1737750338548,19.99150392,259.1,258.89,14.80953433]
[1737750338748,0.0271417,258.98,258.89,14.80953433]
[1737750339149,0.0271417,258.98,258.85,2.3987]
[1737750339752,3.8605,258.94,258.87,3.8615]
[1737750339950,3.8715,259.04,258.79,14.80953433]
[1737750340144,0.02801396,258.89,258.8,2.5852]
[1737750340345,3.8715,259.04,258.8,2.5852]
[1737750340550,0.02567519,258.87,258.8,2.5852]
[1737750340746,5.18196959,258.97,258.8,2.5852]
[1737750340950,0.02832484,258.86,258.8,2.5852]
[1737750341152,0.02832484,258.86,258.8,1.3108]
[1737750341355,5.18196959,258.97,258.83,14.80953433]
[1737750341747,5.18196959,258.97,258.94,3.8605]
[1737750341948,46.95053508,258.89,258.88,14.80953433]
[1737750342150,27.81460821,258.91,258.9,3.8611]
[1737750342352,20.91590821,258.91,258.9,3.8611]
[1737750343158,0.02528619,258.93,258.92,3.8608]
[1737750344256,0.02528619,258.93,258.88,0.02674328]
[1737750344452,0.02528619,258.93,258.69,14.80953433]
[1737750344657,18.36953433,258.95,258.74,14.80953433]
[1737750344854,18.36953433,258.95,258.75,1.3036]
[1737750345054,14.80953433,258.9,258.75,1.3036]
[1737750345458,0.02534734,258.85,258.75,1.3036]
[1737750345963,0.02534734,258.85,258.75,5.1668]
[1737750346360,0.02534734,258.85,258.75,1.3036]
[1737750347075,3.88724734,258.85,258.72,1.2469]
[1737750347275,0.02534734,258.85,258.73,1.3478]
[1737750347771,0.02534734,258.85,258.74,3.8634]
[1737750347977,0.02534734,258.85,258.73,14.80953433]
[1737750348475,0.02534734,258.85,258.76,3.8632]
[1737750349677,0.02534734,258.85,258.74,3.8634]
[1737750351177,3.8621,258.83,258.73,14.80953433]
[1737750351475,3.8621,258.83,258.68,14.80953433]
[1737750351875,0.02887838,258.78,258.68,14.80953433]
[1737750352881,0.02887838,258.78,258.69,2.6721]
[1737750353174,0.02887838,258.78,258.75,3.8633]
[1737750353382,0.02887838,258.78,258.69,2.6721]
[1737750354680,0.02887838,258.78,258.73,3.8635]
[1737750354980,0.02887838,258.78,258.69,2.6721]
[1737750355379,0.02887838,258.78,258.77,3.863]
[1737750356974,0.02887838,258.78,258.69,17.48163433]
[1737750357280,0.02887838,258.78,258.61,14.80953433]
[1737750357482,3.8631,258.77,258.67,3.8645]
[1737750357779,0.02836122,258.72,258.66,14.80953433]
[1737750357981,0.02836122,258.72,258.7,3.864]
[1737750358982,0.02836122,258.72,258.66,3.8646]
[1737750359381,0.02836122,258.72,258.62,16.07193433]
[1737750359581,0.02836122,258.72,258.71,3.8639]
[1737750360382,0.02836122,258.72,258.68,3.8642]
[1737750360684,0.02836122,258.72,258.62,14.80953433]
[1737750360974,0.02836122,258.72,258.63,2.4889]
[1737750361782,0.02836122,258.72,258.7,3.8641]
[1737750362880,278.39708078,259.22,258.77,3.863]
[1737750363079,278.39708078,259.22,258.72,14.80953433]
[1737750363080,1.3344,258.88,258.72,14.80953433]
[1737750363977,1.2612,258.95,258.85,3.8618]
[1737750364376,0.02666973,258.93,258.87,0.02972061]
[1737750364780,0.02666973,258.93,258.87,14.83925494]
[1737750365977,2.578,259.01,258.87,14.83925494]
[1737750365978,1.3203,259.01,258.92,14.80953433]
[1737750366184,1.3203,259.01,258.88,14.80953433]
[1737750366586,5.1799,259.01,258.91,3.8608]
[1737750366886,1.3203,259.01,258.88,14.80953433]
[1737750367081,1.3203,259.01,258.94,3.8604]
[1737750367277,0.02869036,258.97,258.92,14.83688017]
[1737750367478,20.65135965,259.12,258.96,29.61906866]
[1737750367679,20.65135965,259.12,259.05,18.66833433]
[1737750368082,1.2604,259.18,259.05,1.87854868]
[1737750368582,1.2604,259.18,259.07,3.8585]
[1737750368583,3.8573,259.16,259.07,3.8585]
[1737750368784,0.02886945,259.14,259.09,0.02466848]
[1737750369482,3.8581,259.11,259.09,0.02466848]
[1737750369691,0.02886945,259.14,259.0,3.8595]
[1737750369983,1.2604,259.18,259.0,3.8595]
[1737750370384,1.2604,259.18,258.98,3.8598]
[1737750370581,3.8586,259.08,258.97,14.80953433]
[1737750370879,1.2604,259.18,259.05,0.02841311]
[1737750370880,0.02494461,259.11,259.05,0.02841311]
[1737750371083,1.2604,259.18,259.05,0.02841311]
[1737750371281,0.02786199,259.11,259.05,0.02841311]
[1737750372584,3.8582,259.1,259.05,0.02841311]
[1737750372984,3.8587,259.07,259.05,0.02841311]
[1737750375786,3.8584,259.09,259.05,0.02841311]
[1737750375997,0.02786199,259.11,258.97,14.80953433]
[1737750376285,16.14553433,259.17,258.93,14.80953433]
[1737750376488,3.8593,259.02,258.93,14.80953433]
[1737750376685,3.8593,259.02,258.96,3.8602]
[1737750377090,3.8593,259.02,258.93,14.80953433]
[1737750377293,0.02764117,259.02,258.96,0.02615094]
[1737750378088,0.02764117,259.02,258.96,3.88635094]
[1737750378290,0.02764117,259.02,258.96,0.02615094]
[1737750378486,0.02764117,259.02,258.96,3.88635094]
[1737750379093,0.02764117,259.02,258.96,0.02615094]
[1737750379787,3.86,258.98,258.96,0.02615094]
[1737750380187,0.02764117,259.02,258.78,44.47239716]
[1737750380385,3.861,258.91,258.84,76.1819]
[1737750380684,3.861,258.91,258.78,44.47239716]
[1737750380889,4.6342,259.06,258.78,44.47239716]
[1737750381296,0.02677118,258.97,258.84,1.2543]
[1737750381590,0.02677118,258.97,258.89,14.80953433]
[1737750382597,0.02677118,258.97,258.94,3.8604]
[1737750383190,0.02677118,258.97,258.89,14.80953433]
[1737750383395,0.02677118,258.97,258.96,3.8602]
[1737750386390,0.02677118,258.97,258.89,14.80953433]
[1737750386591,3.8603,258.96,258.89,18.67073433]
[1737750387396,0.02677118,258.97,258.89,18.67073433]
[1737750387595,3.8604,258.95,258.89,18.67073433]
[1737750387795,3.8604,258.95,258.89,3.8612]
[1737750387996,0.02677118,258.97,258.89,3.8612]
[1737750388195,3.8602,258.96,258.89,3.8612]
[1737750388397,0.02677118,258.97,258.89,3.8612]
[1737750388695,0.02677118,258.97,258.76,14.80953433]
[1737750388902,1.2959,258.99,258.76,14.80953433]
[1737750389094,0.02973124,258.89,258.76,14.80953433]
[1737750389596,3.8616,258.87,258.76,14.80953433]
[1737750389789,0.02973124,258.89,258.76,14.80953433]
[1737750391199,3.8619,258.85,258.77,3.8629]
[1737750391595,0.0273684,258.84,258.77,3.8629]
[1737750393796,0.0273684,258.84,258.78,3.8628]
[1737750394098,0.0273684,258.84,258.81,14.80953433]
[1737750394294,1.2959,258.99,258.81,14.80953433]
[1737750394499,0.02919131,258.85,258.83,3.8621]
[1737750394701,3.861,258.91,258.83,3.8621]
[1737750395004,0.02522292,258.87,258.83,3.8621]
[1737750396002,0.02522292,258.87,258.76,17.26573433]
[1737750396197,0.02522292,258.87,258.76,14.80953433]
[1737750397202,3.8622,258.83,258.76,14.80953433]
[1737750398204,0.02522292,258.87,258.75,200.0]
[1737750398398,3.8625,258.81,258.75,200.0]
[1737750399098,0.0264475,258.84,258.75,200.0]
[1737750399701,0.0264475,258.84,258.75,214.80953433]
[1737750400200,0.0264475,258.84,258.8,14.80953433]
[1737750400703,1.2959,258.99,258.86,14.80953433]
[1737750401705,0.02958661,258.95,258.9,14.83753152]
[1737750401904,0.02958661,258.95,258.94,3.8605]
[1737750402102,0.02958661,258.95,258.94,18.67003433]
[1737750402301,1.2481,259.07,259.0,3.8595]
[1737750402504,16.15773433,259.18,258.99,14.80953433]
[1737750402706,2.4758,259.17,258.99,14.80953433]
[1737750402900,2.4758,259.17,259.03,3.8591]
[1737750403201,2.4758,259.17,258.99,14.80953433]
[1737750403403,0.02541754,259.13,259.07,0.02859643]
[1737750403609,14.80953433,259.16,258.94,14.80953433]
[1737750403805,0.02796676,259.13,259.07,0.02505432]
[1737750404108,3.8584,259.08,259.07,0.02505432]
[1737750404608,0.02710566,259.13,259.07,0.02505432]
[1737750404810,3.8581,259.11,259.07,0.02505432]
[1737750405103,0.02710566,259.13,259.07,0.02505432]
[1737750405411,3.8584,259.09,259.07,0.02505432]
[1737750405602,14.80953433,259.12,258.91,1.2775]
[1737750405807,14.80953433,259.07,258.83,14.80953433]
[1737750406009,2.6463,259.06,258.84,1.304]
[1737750406201,2.6463,259.06,258.87,3.8615]
[1737750406803,2.6463,259.06,258.84,1.304]
[1737750407113,0.02654289,258.99,258.94,0.02876639]
[1737750408314,3.8603,258.96,258.94,0.02876639]
[1737750409217,0.02654289,258.99,258.94,0.02876639]
[1737750409714,2.6463,259.06,259.0,199.97345711]
[1737750410015,3.8595,259.01,259.0,199.97345711]
[1737750412316,3.8595,259.01,259.0,193.88535711]
[1737750412517,3.8595,259.01,259.0,167.50259736]
[1737750412719,3.8595,259.01,259.0,154.63599736]
[1737750414925,3.8595,259.01,259.0,139.46849736]
[1737750415126,3.8598,258.99,258.98,7.31e-05]
[1737750416429,3.26,258.99,258.81,1.2682]
[1737750416724,14.80953433,258.95,258.81,1.2682]
[1737750417520,3.8614,258.88,258.85,0.02964725]
[1737750417821,0.02825656,258.91,258.85,0.02964725]
[1737750418320,3.8618,258.86,258.85,0.02964725]
[1737750419819,0.02825656,258.91,258.85,0.02964725]
[1737750420522,3.8616,258.87,258.85,0.02964725]
[1737750420823,0.02825656,258.91,258.85,0.02964725]
[1737750421228,3.8617,258.86,258.85,0.02964725]
[1737750427928,3.8614,258.89,258.85,0.02964725]
[1737750428131,0.02825656,258.91,258.85,0.02964725]
[1737750428336,3.8612,258.9,258.85,0.02964725]
[1737750428631,0.02825656,258.91,258.85,0.02964725]
[1737750429934,3.8617,258.87,258.85,0.02964725]
[1737750430330,3.8617,258.86,258.85,0.02964725]
[1737750432738,3.8617,258.86,258.85,4.725e-05]
[1737750440935,14.80953433,258.86,258.75,1.2569]
[1737750441240,17.96953433,258.86,258.67,1.3298]
[1737750442140,0.02564662,258.79,258.67,1.3298]
[1737750443139,3.8633,258.76,258.67,5.1943]
[1737750443438,0.02564662,258.79,258.67,1.3298]
[1737750444341,3.8637,258.73,258.68,3.8644]
[1737750444833,3.88879875,258.73,258.68,3.8644]
[1737750445034,3.864,258.71,258.67,1.3298]
[1737750445643,3.8643,258.69,258.67,1.3298]
[1737750447545,0.02509875,258.73,258.67,1.3298]
[1737750449247,3.8642,258.69,258.67,1.3298]
[1737750449646,0.02509875,258.73,258.67,1.3298]
[1737750449647,3.8644,258.68,258.67,1.3298]
[1737750458550,0.02509875,258.73,258.61,3.8653]
[1737750458551,0.02509875,258.73,258.61,9.32256241]
[1737750458752,7.7264,258.77,258.62,1.3035]
[1737750458952,0.02830269,258.7,258.62,1.3035]
[1737750459254,3.8652,258.63,258.62,1.3035]
[1737750462753,0.02830269,258.7,258.62,1.3035]
[1737750462957,3.865,258.64,258.62,1.3035]
[1737750463259,0.02830269,258.7,258.62,1.3035]
[1737750463760,3.8644,258.68,258.62,1.3035]
[1737750463958,0.02830269,258.7,258.62,1.3035]
[1737750464451,3.8651,258.63,258.62,1.3035]
[1737750466060,0.02830269,258.7,258.62,1.3035]
[1737750466661,3.865,258.64,258.62,1.3035]
[1737750468261,3.8661,258.57,258.56,9.32256241]
[1737750468456,7.7282,258.7,258.52,9.32256241]
[1737750468662,0.02827423,258.59,258.52,9.32256241]
[1737750469456,0.02827423,258.59,258.1,321.66533585]
[1737750469457,11.59,258.57,258.1,321.66533585]
[1737750469661,9.32256241,258.67,258.46,9.32256241]
[1737750469860,9.32256241,258.67,258.47,1.3264]
[1737750470060,3.8657,258.6,258.5,9.32256241]
[1737750470460,3.8653,258.62,258.5,9.32256241]
[1737750470662,12.90256241,258.71,258.5,9.32256241]
[1737750470962,0.02908224,258.63,258.58,0.02887993]
[1737750471265,9.32256241,258.76,258.54,9.32256241]
[1737750471462,0.02442824,258.63,258.58,0.02963929]
[1737750471657,9.32256241,258.76,258.58,9.32256241]
[1737750471863,0.02607424,258.63,258.62,9.32256241]
[1737750472058,5.16283991,258.79,258.62,9.32256241]
[1737750472465,5.16283991,258.79,258.66,9.32256241]
[1737750473166,0.02455925,258.75,258.7,0.02861905]
[1737750474163,3.8637,258.73,258.7,0.02861905]
[1737750474364,0.02455925,258.75,258.7,0.02861905]
[1737750475068,9.32256241,258.88,258.7,0.02861905]
[1737750475264,9.32256241,258.88,258.7,2.5622]
[1737750475665,9.32256241,258.84,258.7,2.5622]
[1737750476069,0.02802837,258.8,258.74,0.0266673]
[1737750476568,6.76144725,258.79,258.74,0.00547353]
[1737750477169,10.30969094,258.78,258.74,0.00547353]
[1737750477369,10.30969094,258.77,258.74,0.00547353]
[1737750477568,10.30969094,258.76,258.74,0.00547353]
[1737750477870,10.30969094,258.75,258.74,0.00547353]
[1737750478267,18.06118143,258.75,258.66,2.6573]
[1737750478472,10.30969094,258.74,258.66,2.6573]
[1737750478768,18.06118143,258.73,258.69,9.32256241]
[1737750478969,8.27889094,258.72,258.69,9.32256241]
[1737750479164,1.01224969,258.72,258.69,9.32256241]
[1737750479370,9.32256241,258.92,258.71,9.32256241]
[1737750479571,0.02654678,258.73,258.68,0.02964669]
[1737750479873,9.32256241,258.92,258.75,9.32256241]
[1737750480171,9.32256241,258.92,258.75,2.03345157]
[1737750480366,0.02946096,258.86,258.75,2.03345157]
[1737750480573,0.02946096,258.86,258.81,9.32256241]
[1737750480771,1.2356,258.94,258.81,9.32256241]
[1737750481066,50.62528172,259.04,258.85,9.32256241]
[1737750481271,6.39843991,259.01,258.85,9.32256241]
[1737750481572,0.02549389,258.96,258.9,0.02629525]
[1737750481767,5.16283991,258.99,258.89,9.32256241]
[1737750481963,0.02763655,258.96,258.9,0.0295466]
[1737750482772,3.8608,258.92,258.9,0.0295466]
[1737750482969,9.35019896,258.96,258.81,9.32256241]
[1737750483272,9.32256241,258.96,258.81,9.32256241]
[1737750483571,9.32256241,258.9,258.7,9.32256241]
[1737750483773,9.32256241,258.85,258.66,9.32256241]
[1737750483974,3.8633,258.76,258.66,9.32256241]
[1737750484270,0.02491577,258.78,258.66,9.32256241]
[1737750484476,0.02491577,258.78,258.67,2.5943]
[1737750484667,3.8631,258.77,258.67,6.4588]
[1737750485371,0.02491577,258.78,258.7,9.32256241]
[1737750485575,0.02491577,258.78,258.74,9.32256241]
[1737750485875,0.02491577,258.78,258.72,14.90419541]
[1737750486574,0.02491577,258.78,258.67,17.49849541]
[1737750488074,3.8637,258.73,258.67,17.49849541]
[1737750488575,0.02603802,258.73,258.67,17.49849541]
[1737750488977,0.02603802,258.73,258.67,2.5943]
[1737750489377,3.864,258.71,258.67,2.5943]
[1737750489578,0.02603802,258.73,258.6,3.8656]
[1737750489778,1.2877,258.82,258.6,3.8656]
[1737750489979,0.02777776,258.69,258.6,3.8656]
[1737750490475,3.8645,258.68,258.6,3.8656]
[1737750490680,3.8645,258.68,258.61,3.8654]
[1737750490881,0.02777776,258.69,258.58,2.6566]
[1737750491979,0.02777776,258.69,258.57,12.87209541]
[1737750492179,14.90419541,258.67,258.42,14.90419541]
[1737750492382,14.90419541,258.67,258.45,1.2922]
[1737750492580,0.02967656,258.57,258.45,1.2922]
[1737750492875,3.8662,258.56,258.47,18.77169541]
[1737750493682,3.8662,258.56,258.47,14.90419541]
[1737750493980,0.02967656,258.57,258.47,14.90419541]
[1737750494375,0.02967656,258.57,258.49,3.8672]